bitfinex-derivatives/quotes_ETHF0:USTF0_20250213
["timestamp","ask_amount","ask_price","bid_price","bid_amount"]
[1739475157466,3.2078,2634.9,2634.6,0.00568559]
[1739475157655,3.96674,2634.9,2634.6,0.76467559]
[1739475157961,3.2078,2634.9,2634.6,0.00568559]
[1739475158153,3.2078,2634.9,2634.8,0.75895]
[1739475158353,0.75887,2635.1,2634.8,0.75895]
[1739475158559,0.59778559,2635.2,2635.1,0.75887]
[1739475158860,0.00568559,2635.2,2635.1,0.75887]
[1739475159858,5.59e-06,2635.2,2635.1,6.75887]
[1739475160361,5.59e-06,2635.2,2634.8,0.5718]
[1739475160757,5.59e-06,2635.2,2634.6,3.21348559]
[1739475160956,3.2078,2635.0,2634.6,4.99748559]
[1739475161166,3.96672,2635.0,2634.7,0.75897]
[1739475161761,3.2078,2635.0,2634.6,4.99748559]
[1739475162460,3.2078,2635.0,2634.6,0.00568559]
[1739475162652,0.75898,2634.7,2634.6,0.00568559]
[1739475162963,3.2078,2634.7,2633.7,1.784]
[1739475163260,3.2078,2634.4,2633.8,40.8]
[1739475163456,0.6012,2634.6,2634.2,0.7591]
[1739475163856,1.36022,2634.6,2634.2,0.75912]
[1739475164056,0.6012,2634.6,2634.3,0.75908]
[1739475164262,0.6012,2634.6,2634.1,0.00568559]
[1739475164458,0.6012,2634.6,2634.2,0.75912]
[1739475164662,0.6012,2634.6,2634.1,0.00568559]
[1739475165660,0.6012,2634.6,2634.2,0.75911]
[1739475165962,0.6012,2634.6,2634.1,0.00568559]
[1739475166153,0.7591,2634.3,2634.1,0.00568559]
[1739475166760,3.2078,2634.4,2634.1,0.00568559]
[1739475166761,3.2078,2634.4,2634.1,0.76482559]
[1739475166968,3.2078,2634.4,2634.1,0.76481559]
[1739475167266,3.2078,2634.4,2634.2,0.75912]
[1739475167469,0.6012,2634.6,2634.2,0.75912]
[1739475167662,0.75905,2634.5,2634.1,0.76483559]
[1739475167867,1.36022,2634.6,2634.1,0.76483559]
[1739475168564,0.6012,2634.6,2634.1,0.76483559]
[1739475168865,0.75905,2634.5,2634.1,0.00568559]
[1739475169066,0.6012,2634.6,2634.1,0.00568559]
[1739475169572,0.6012,2634.6,2634.3,0.75909]
[1739475169770,0.6012,2634.6,2634.1,0.00568559]
[1739475169969,0.6012,2634.6,2634.3,0.75908]
[1739475170466,1.36021,2634.6,2634.3,0.75908]
[1739475170673,0.6012,2634.6,2634.1,0.00568559]
[1739475170966,0.75908,2634.4,2634.1,0.00568559]
[1739475171161,0.7591,2634.3,2634.1,0.00568559]
[1739475172262,3.2078,2634.4,2634.1,0.00568559]
[1739475172566,0.75913,2634.2,2634.1,0.00568559]
[1739475173160,0.75928,2633.7,2633.5,3.2078]
[1739475173359,3.2078,2634.0,2633.5,3.96712]
[1739475173569,0.75922,2633.9,2633.6,0.75929]
[1739475173766,1.07133155,2633.9,2633.6,0.75929]
[1739475174263,0.31211155,2633.9,2633.6,0.75929]
[1739475174563,3.2078,2634.0,2633.5,44.0078]
[1739475174762,3.21348559,2634.0,2633.8,0.75923]
[1739475175470,3.97268559,2634.0,2633.5,44.0078]
[1739475175666,3.21348559,2634.0,2633.5,44.0078]
[1739475175968,3.97267559,2634.0,2633.7,0.75926]
[1739475176169,3.21348559,2634.0,2633.4,1.785]
[1739475176366,3.21348559,2634.0,2633.8,0.75922]
[1739475176664,3.21348559,2634.0,2633.7,0.75925]
[1739475176858,3.97267559,2634.0,2633.7,0.75926]
[1739475177063,3.21348559,2634.0,2633.8,40.8]
[1739475177259,3.21348559,2634.0,2633.8,41.55923]
[1739475177572,3.21348559,2634.0,2633.9,0.75921]
[1739475177964,3.21348559,2634.0,2633.9,2.54421]
[1739475178176,0.00568559,2634.0,2633.9,2.54421]
[1739475179370,3.21348559,2634.0,2633.9,2.54421]
[1739475179765,3.21348559,2634.0,2633.8,35.8]
[1739475179965,3.21348559,2634.0,2633.5,0.5553]
[1739475180169,3.21348559,2634.0,2632.7,1.785]
[1739475180170,3.2078,2633.7,2632.7,1.785]
[1739475180366,1.7363,2633.9,2632.8,1.89883]
[1739475180367,3.2078,2633.6,2632.8,1.89883]
[1739475180570,3.2078,2633.6,2633.3,0.75937]
[1739475180771,3.2078,2633.6,2632.9,44.75494848]
[1739475181167,3.2078,2633.3,2632.9,40.8]
[1739475181366,0.75943,2633.2,2632.8,0.75952]
[1739475181566,0.75943,2633.2,2632.0,28.83074848]
[1739475181567,3.2078,2633.0,2632.0,28.83074848]
[1739475181775,3.2078,2632.7,2632.1,42.69934]
[1739475182165,3.21349649,2632.7,2632.1,40.8]
[1739475182675,3.21349649,2632.7,2632.6,0.75959]
[1739475182871,3.21349649,2632.7,2632.5,0.75961]
[1739475183271,3.21349649,2632.7,2632.4,0.75964]
[1739475183768,3.21349649,2632.7,2632.1,40.8]
[1739475184076,3.2078,2632.3,2632.0,19.883]
[1739475184271,3.2078,2632.3,2631.9,3.10858]
[1739475184272,3.2078,2632.3,2631.9,1.785]
[1739475184471,3.2078,2632.3,2631.8,41.55981]
[1739475184677,3.2078,2632.3,2631.8,40.8]
[1739475184873,4.3557,2632.3,2631.8,40.8]
[1739475185564,3.2078,2632.0,2631.8,40.8]
[1739475185964,3.2078,2632.0,2631.2,2.372]
[1739475186275,3.2078,2632.0,2626.9,125.5366274]
[1739475186276,3.2078,2631.3,2630.4,7.16274848]
[1739475186481,3.2078,2631.3,2630.7,3.95494848]
[1739475186775,0.00569649,2631.1,2631.0,7.16274848]
[1739475187079,3.7868,2632.3,2631.0,7.16274848]
[1739475187270,3.2078,2632.0,2631.3,3.95494848]
[1739475187577,3.2078,2632.0,2631.4,1.798]
[1739475187876,3.2078,2632.0,2631.1,0.5693]
[1739475187877,3.2078,2631.7,2631.2,1.801]
[1739475188073,3.2078,2631.7,2631.5,0.7599]
[1739475188280,3.2078,2631.7,2631.4,0.00569649]
[1739475188465,3.2078,2631.7,2631.6,0.75988]
[1739475188668,0.00569649,2632.0,2631.9,0.75979]
[1739475188873,6.49e-06,2632.0,2631.9,9.73353848]
[1739475189077,1.7908,2633.4,2631.9,14.97374848]
[1739475189377,1.1876,2633.4,2633.2,0.7594]
[1739475189568,0.5904,2633.4,2632.9,3.2078]
[1739475189773,3.2078,2633.8,2633.2,3.2078]
[1739475190075,0.5972,2633.9,2633.3,40.8]
[1739475190273,0.00569649,2633.8,2633.7,7.92200848]
[1739475190469,0.00569649,2633.8,2633.7,7.16274848]
[1739475190772,0.00569649,2633.8,2633.3,40.8]
[1739475190974,0.00569649,2633.8,2633.5,1.816]
[1739475191273,3.21349649,2633.8,2633.5,1.816]
[1739475191580,0.00569649,2633.8,2633.5,1.816]
[1739475192077,3.97273649,2633.8,2633.4,1.817]
[1739475192273,3.21349649,2633.8,2633.4,1.817]
[1739475192476,3.2078,2633.5,2633.2,0.00569649]
[1739475192780,3.96713,2633.5,2633.2,0.00569649]
[1739475193181,3.2078,2633.5,2633.2,0.00569649]
[1739475194879,3.2078,2633.5,2633.4,0.00444932]
[1739475195479,0.00569649,2633.8,2633.4,0.00444932]
[1739475195878,0.00569649,2633.8,2633.7,0.75927]
[1739475196080,0.00569649,2633.8,2633.7,1.814]
[1739475196581,0.00569649,2633.8,2633.7,2.57327]
[1739475196780,0.00569649,2633.8,2633.7,1.814]
[1739475197683,0.00569649,2633.8,2633.7,2.57327]
[1739475198183,0.00569649,2633.8,2633.7,1.819]
[1739475198573,0.00569649,2633.8,2633.5,3.2078]
[1739475198574,0.00569649,2633.8,2633.5,3.96711]
[1739475198884,0.00569649,2633.8,2633.7,1.819]
[1739475200075,0.00569649,2633.8,2633.7,2.57827]
[1739475200689,0.00569649,2633.8,2633.7,1.819]
[1739475201384,0.00569649,2633.8,2633.7,2.57827]
[1739475201576,0.00569649,2633.8,2633.7,1.819]
[1739475201777,0.00569649,2633.8,2633.6,0.75929]
[1739475201978,0.00569649,2633.8,2633.6,1.812]
[1739475202280,0.00569649,2633.8,2633.7,0.75927]
[1739475203782,0.00569649,2633.8,2633.6,1.812]
[1739475203982,0.00569649,2633.8,2633.5,3.2078]
[1739475204180,0.00569649,2633.8,2633.6,1.812]
[1739475204384,0.00569649,2633.8,2633.7,0.75927]
[1739475205380,0.00569649,2633.8,2633.7,41.55927]
[1739475205577,0.00569649,2633.8,2633.7,40.8]
[1739475205783,0.00569649,2633.8,2633.7,0.75927]
[1739475206291,0.00569649,2633.8,2633.6,2.57129]
[1739475206883,0.00569649,2633.8,2633.5,3.2078]
[1739475207079,0.00569649,2633.8,2633.5,3.96712]
[1739475207390,0.00569649,2633.8,2633.6,0.75929]
[1739475207791,0.00569649,2633.8,2633.4,3.21224932]
[1739475207792,0.00569649,2633.8,2633.7,0.75927]
[1739475207996,0.00569649,2633.8,2633.7,3.96707]
[1739475209290,3.96688,2634.4,2633.7,3.2078]
[1739475209492,3.96688,2634.4,2634.1,0.75915]
[1739475209691,0.7591,2634.3,2634.0,0.75917]
[1739475210091,3.2078,2634.4,2633.7,3.2078]
[1739475210293,3.96689,2634.4,2634.0,0.75916]
[1739475210594,0.75911,2634.3,2634.0,0.75916]
[1739475211196,3.2078,2634.4,2634.0,0.75917]
[1739475211489,0.00569649,2634.5,2634.4,0.75907]
[1739475211889,0.00569649,2634.5,2634.4,4.71401848]
[1739475212792,3.798,2635.2,2634.4,9.95494848]
[1739475212987,3.798,2635.2,2634.5,1.81]
[1739475213197,3.798,2635.2,2634.6,40.8]
[1739475213198,0.75893,2634.9,2634.6,40.8]
[1739475213389,3.798,2635.2,2634.6,40.8]
[1739475213591,0.75894,2634.9,2634.6,40.8]
[1739475213789,3.798,2635.2,2634.6,40.8]
[1739475213994,3.798,2635.2,2634.5,0.00569649]
[1739475213995,3.2078,2634.9,2634.5,0.00569649]
[1739475214297,3.96681,2634.6,2634.5,0.00569649]
[1739475214592,3.2078,2634.6,2633.8,5.0188]
[1739475214794,0.75917,2634.1,2633.8,1.811]
[1739475215089,3.2078,2634.3,2633.6,40.8]
[1739475215289,0.75921,2633.9,2633.4,5.78258932]
[1739475215492,0.75924,2633.8,2633.5,0.75932]
[1739475215690,0.75923,2633.9,2633.6,0.75929]
[1739475215894,0.75923,2633.9,2633.5,0.75931]
[1739475216291,3.2078,2634.0,2633.4,5.02894581]
[1739475216892,3.2078,2634.3,2633.4,6.92729581]
[1739475217197,0.5546,2634.5,2633.7,3.2078]
[1739475217594,0.75908,2634.4,2634.0,0.75917]
[1739475217793,0.75908,2634.4,2633.9,0.7592]
[1739475217992,0.75913,2634.2,2633.7,3.2078]
[1739475218187,3.2078,2634.3,2633.7,3.2078]
[1739475218394,0.75924,2633.8,2633.4,0.76948581]
[1739475218700,0.75931,2633.6,2633.4,1.82314581]
[1739475219786,0.7593,2633.6,2633.4,1.82314581]
[1739475220003,0.5902,2633.8,2633.4,1.82314581]
[1739475220296,0.75929,2633.7,2633.4,1.82314581]
[1739475220495,0.5902,2633.8,2633.4,1.82314581]
[1739475220686,0.576,2633.9,2633.8,0.75924]
[1739475220889,3.2078,2634.4,2633.5,9.06107848]
[1739475221098,3.2078,2634.4,2634.1,0.75913]
[1739475221493,0.75913,2634.2,2633.9,2.5682]
[1739475221694,0.75913,2634.2,2634.0,40.8]
[1739475221894,0.75916,2634.1,2634.0,40.8]
[1739475222095,3.21349649,2635.0,2634.0,40.8]
[1739475222297,0.75894,2634.9,2634.5,0.75902]
[1739475222500,0.75897,2634.8,2634.5,0.75902]
[1739475222703,3.21349649,2635.0,2634.5,0.75902]
[1739475222996,3.97240649,2635.0,2634.7,0.75897]
[1739475223302,3.97240649,2635.0,2634.5,1.809]
[1739475223303,3.21349649,2635.0,2634.5,1.809]
[1739475224005,0.75896,2634.8,2634.5,2.56801]
[1739475224302,0.75894,2634.9,2634.5,1.809]
[1739475224496,3.97241649,2635.0,2634.7,0.75898]
[1739475224802,0.75893,2634.9,2634.6,0.75899]
[1739475225497,0.75894,2634.9,2634.6,0.759]
[1739475225697,3.21349649,2635.0,2634.5,1.809]
[1739475226097,3.21349649,2635.0,2634.9,0.75892]
[1739475227095,3.21349649,2635.0,2634.6,3.2078]
[1739475227502,0.00569649,2635.0,2634.9,0.75892]
[1739475227901,0.00569649,2635.0,2634.6,3.2078]
[1739475228103,0.00569649,2635.0,2634.6,3.9668]
[1739475228408,0.75897,2634.8,2634.5,0.75902]
[1739475228705,0.00569649,2635.0,2634.9,0.75892]
[1739475229106,0.552,2635.7,2634.9,1.804]
[1739475229107,1.1685,2635.6,2634.9,1.804]
[1739475229300,1.1685,2635.6,2635.0,7.16274848]
[1739475229802,1.1685,2635.6,2635.5,0.75875]
[1739475230002,3.2078,2636.1,2635.4,3.2078]
[1739475230205,1.1685,2636.0,2635.4,3.2078]
[1739475230406,0.00569649,2635.8,2635.6,0.7587]
[1739475230606,0.00569649,2635.8,2635.7,0.75869]
[1739475231905,0.00569649,2635.8,2635.7,3.96649]
[1739475232303,0.00569649,2635.8,2635.7,4.56919]
[1739475232806,3.2078,2636.4,2635.7,3.8105]
[1739475233503,3.2078,2636.1,2635.6,3.95494848]
[1739475233803,0.75869,2635.7,2635.6,1.805]
[1739475234010,3.21349649,2636.1,2635.7,0.75867]
[1739475234202,3.21349649,2636.1,2635.6,5.75994848]
[1739475234401,3.97207649,2636.1,2635.7,0.75868]
[1739475234714,3.21349649,2636.1,2635.6,5.75994848]
[1739475235009,3.97208649,2636.1,2635.7,0.75869]
[1739475235402,3.21349649,2636.1,2635.6,5.75994848]
[1739475235606,3.21349649,2636.1,2635.8,0.75865]
[1739475236206,3.21349649,2636.1,2635.6,5.75994848]
[1739475236407,3.21349649,2636.1,2635.9,0.75863]
[1739475236608,3.21349649,2636.1,2636.0,0.75861]
[1739475237213,3.21349649,2636.1,2635.6,7.65675848]
[1739475237710,3.21349649,2636.1,2636.0,0.75861]
[1739475237915,0.00569649,2636.1,2636.0,0.75861]
[1739475239323,0.00569649,2636.1,2635.8,3.7693]
[1739475239525,0.75862,2636.0,2635.5,3.2078]
[1739475239826,0.75862,2636.0,2635.8,1.798]
[1739475240030,0.75868,2635.8,2635.6,1.798]
[1739475240322,0.76428649,2636.1,2635.6,1.798]
[1739475240518,0.00569649,2636.1,2635.6,3.69477]
[1739475240723,0.00569649,2636.1,2636.0,0.75861]
[1739475241323,3.2078,2636.3,2636.2,0.75855]
[1739475241625,3.2078,2636.3,2636.2,1.798]
[1739475241822,3.7765,2636.9,2636.2,1.798]
[1739475242027,4.53486,2636.9,2636.6,0.75842]
[1739475242223,3.7765,2636.9,2636.3,42.69631]
[1739475242425,3.2114124,2636.9,2636.7,0.75839]
[1739475242624,3.2114124,2636.9,2636.4,0.75848]
[1739475242824,3.2114124,2636.9,2636.5,0.75845]
[1739475243025,3.2114124,2636.9,2636.3,40.8]
[1739475243225,3.2114124,2636.9,2636.3,42.69628]
[1739475243419,3.9697724,2636.9,2636.3,40.8]
[1739475243623,0.75839,2636.8,2636.3,40.8]
[1739475243829,3.9697824,2636.9,2636.5,0.75845]
[1739475244133,3.2114124,2636.9,2636.3,40.8]
[1739475244335,3.2114124,2636.9,2636.5,5.85111848]
[1739475244634,3.2114124,2636.9,2636.8,0.75838]
[1739475244832,0.0036124,2636.9,2636.8,6.50832848]
[1739475245133,0.0036124,2636.9,2636.8,1.795]
[1739475245526,0.0036124,2636.9,2636.8,2.55338]
[1739475245824,0.0036124,2636.9,2636.8,6.50832848]
[1739475247027,3.96595,2637.6,2636.8,8.95774848]
[1739475247223,3.96596,2637.6,2637.2,0.75825]
[1739475247429,3.96596,2637.6,2637.1,3.95494848]
[1739475247430,3.2078,2637.6,2637.3,1.804]
[1739475247634,0.7582,2637.5,2637.3,1.804]
[1739475247834,0.75818,2637.5,2637.3,1.804]
[1739475248028,3.2078,2637.6,2637.3,1.804]
[1739475248029,0.75821,2637.4,2637.3,1.804]
[1739475248333,0.75819,2637.5,2637.3,1.804]
[1739475248533,0.75821,2637.4,2637.3,1.804]
[1739475248731,3.2078,2637.6,2637.3,1.804]
[1739475249033,3.96596,2637.6,2637.3,2.56223]
[1739475249230,0.75818,2637.5,2637.3,1.804]
[1739475249431,3.2078,2637.6,2637.4,0.7582]
[1739475249828,3.2078,2637.6,2637.3,1.804]
[1739475250026,3.2078,2637.6,2637.5,0.75818]
[1739475250232,4.3244,2638.1,2637.4,7.16274848]
[1739475250430,4.3244,2638.1,2637.4,9.05823848]
[1739475250634,4.3244,2638.1,2637.8,0.75807]
[1739475250833,4.3244,2638.1,2637.5,41.3665]
[1739475251137,0.75813,2637.7,2637.6,1.806]
[1739475251334,3.2078,2637.8,2637.4,1.806]
[1739475251633,3.2078,2637.5,2637.2,1.807]
[1739475252435,3.2078,2639.0,2637.4,7.16274848]
[1739475252633,1.1616,2638.9,2638.3,3.95494848]
[1739475252838,1.1616,2638.9,2638.7,0.75781]
[1739475253024,1.1616,2638.9,2638.5,3.2078]
[1739475253227,1.1616,2638.9,2638.5,3.21348473]
[1739475253429,0.75781,2638.8,2638.5,3.21348473]
[1739475253629,3.2078,2638.7,2638.5,0.00568473]
[1739475253930,0.75786,2638.6,2638.5,0.00568473]
[1739475255037,0.75799,2638.2,2637.8,5.0278]
[1739475255337,3.96571,2638.5,2638.2,0.75796]
[1739475255638,3.2078,2638.5,2638.0,3.95494848]
[1739475255834,3.2078,2638.2,2637.5,3.2078]
[1739475256031,0.75807,2637.9,2637.7,0.75812]
[1739475256230,0.55184551,2638.1,2637.7,0.75812]
[1739475256435,0.75803,2638.0,2637.7,0.75812]
[1739475256638,0.75804,2638.0,2637.7,0.75809]
[1739475256834,0.75804,2638.0,2637.6,0.00568473]
[1739475257137,0.00564551,2638.1,2637.7,3.95494848]
[1739475257337,0.00564551,2638.1,2637.9,0.75805]
[1739475257640,0.00564551,2638.1,2637.9,0.75804]
[1739475257826,0.00564551,2638.1,2638.0,0.75803]
[1739475258232,0.00564551,2638.1,2638.0,4.71297848]
[1739475259534,0.00564551,2638.1,2638.0,3.95494848]
[1739475259834,0.00564551,2638.1,2637.7,3.95494848]
[1739475260040,0.00564551,2638.1,2638.0,0.75803]
[1739475260235,0.00564551,2638.1,2638.0,4.71297848]
[1739475260533,0.00564551,2638.1,2638.0,7.92077848]
[1739475261541,0.00564551,2638.1,2638.0,48.72077848]
[1739475264735,0.00564551,2638.1,2637.7,7.16274848]
[1739475264929,0.00564551,2638.1,2637.8,1.814]
[1739475264930,3.2078,2637.9,2637.8,1.814]
[1739475265134,0.75809,2637.8,2637.6,0.60538473]
[1739475265336,3.2078,2637.9,2637.6,1.81968473]
[1739475265541,0.75812,2637.7,2637.6,1.81968473]
[1739475265840,3.2078,2637.9,2637.8,0.75809]
[1739475266043,3.2078,2637.9,2637.6,1.81968473]
[1739475266044,3.2078,2637.9,2637.6,2.57781473]
[1739475266241,3.2078,2637.9,2637.6,1.81968473]
[1739475266441,0.75787,2638.6,2637.8,3.2078]
[1739475266645,3.2078,2638.4,2637.9,3.95494848]
[1739475266939,3.2078,2638.0,2637.7,0.5993]
[1739475267133,3.2078,2638.0,2636.9,3.2078]
[1739475267329,3.2078,2637.6,2636.9,3.2078]
[1739475267539,3.2078,2637.6,2636.8,5.78094848]
[1739475267743,3.96596,2637.6,2636.8,5.78094848]
[1739475267940,3.2078,2637.6,2636.8,5.78094848]
[1739475268135,0.7582,2637.5,2637.1,0.75828]
[1739475268441,3.60492,2637.9,2636.8,5.78094848]
[1739475268442,1.7097,2637.9,2637.4,3.95494848]
[1739475268643,3.2078,2638.1,2637.7,3.95494848]
[1739475268847,0.5784,2638.2,2638.1,0.758]
[1739475269239,0.58408473,2638.2,2638.1,0.758]
[1739475270545,0.00568473,2638.2,2638.1,44.7658]
[1739475272146,0.5683,2639.1,2638.2,1.89488]
[1739475272350,0.5683,2639.1,2638.9,0.75777]
[1739475272650,0.5683,2639.1,2638.7,3.95494848]
[1739475272843,0.5683,2639.1,2638.7,4.71276848]
[1739475273650,1.32603,2639.1,2638.7,3.95494848]
[1739475273841,0.5683,2639.1,2638.7,3.95494848]
[1739475274041,0.75776,2639.0,2638.7,3.95494848]
[1739475274437,0.5683,2639.1,2638.7,3.95494848]
[1739475274641,0.75775,2639.0,2638.7,3.95494848]
[1739475275048,3.7761,2639.1,2638.7,3.95494848]
[1739475275440,3.7761,2639.1,2638.8,0.7578]
[1739475276346,3.7761,2639.1,2638.7,3.95494848]
[1739475276648,3.7761,2639.1,2639.0,0.75775]
[1739475277143,0.5683,2639.1,2639.0,0.75775]
[1739475277344,0.5683,2639.1,2638.7,3.95494848]
[1739475277546,0.5683,2639.1,2638.6,3.21348473]
[1739475277750,1.32602,2639.1,2638.7,2.58881]
[1739475277950,0.5683,2639.1,2638.9,0.75775]
[1739475278153,0.5683,2639.1,2639.0,0.75775]
[1739475278349,0.5626,2639.3,2639.2,0.75769]
[1739475278552,3.2078,2639.7,2639.2,3.96549]
[1739475278855,3.2078,2640.0,2639.9,0.75749]
[1739475279149,1.114,2640.1,2640.0,0.75746]
[1739475279343,0.5498,2640.1,2639.6,9.05665848]
[1739475279549,0.5498,2640.1,2639.6,7.16274848]
[1739475279745,0.5498,2640.1,2639.7,0.75753]
[1739475279942,0.5498,2640.1,2639.6,7.92030848]
[1739475280545,0.5498,2640.1,2639.6,7.16274848]
[1739475280749,0.5763,2640.2,2639.9,3.95494848]
[1739475282048,0.75744,2640.1,2639.9,3.95494848]
[1739475282249,0.5763,2640.2,2639.9,3.95494848]
[1739475282250,0.75746,2640.0,2639.9,3.95494848]
[1739475282843,5.10151,2640.0,2639.3,7.16274848]
[1739475283050,0.7576,2639.5,2639.4,1.828]
[1739475283254,3.2078,2640.0,2639.4,1.828]
[1739475283444,0.75756,2639.7,2639.4,1.828]
[1739475283648,3.2078,2640.0,2639.4,1.828]
[1739475283847,0.7576,2639.5,2639.4,1.828]
[1739475284243,3.2078,2640.0,2639.4,1.828]
[1739475284447,0.75753,2639.8,2639.6,3.95494848]
[1739475284643,0.75754,2639.7,2639.6,3.95494848]
[1739475285057,0.7576,2639.5,2639.4,1.828]
[1739475285553,0.75769,2639.2,2639.1,0.5881]
[1739475285753,0.75772,2639.1,2639.0,3.95494848]
[1739475285945,0.75776,2639.0,2638.8,2.3834]
[1739475286150,3.2078,2639.1,2638.7,3.95494848]
[1739475286351,0.75779,2638.9,2638.7,3.95494848]
[1739475286553,0.5928,2639.0,2638.7,3.95494848]
[1739475286752,0.5928,2639.0,2638.6,0.00568473]
[1739475286972,3.96563,2638.7,2638.6,0.00568473]
[1739475287352,0.75783,2638.7,2638.6,0.00568473]
[1739475288851,0.75783,2638.8,2638.6,0.00568473]
[1739475289052,0.75783,2638.7,2638.6,0.00568473]
[1739475290655,3.96563,2638.7,2638.6,0.00568473]
[1739475291452,9.2078,2638.7,2638.1,40.8]
[1739475291654,0.75798,2638.2,2638.1,40.8]
[1739475292853,0.5853,2638.3,2637.9,0.00568473]
[1739475292854,0.75803,2638.0,2637.9,0.00568473]
[1739475293054,0.758,2638.2,2638.0,0.75801]
[1739475293265,0.758,2638.1,2638.0,0.75801]
[1739475293562,0.75802,2638.1,2637.9,0.76372473]
[1739475293755,3.21348473,2638.4,2637.9,0.00568473]
[1739475293961,3.21348473,2638.4,2638.1,3.95494848]
[1739475294148,0.75796,2638.3,2638.1,3.95494848]
[1739475294352,3.21348473,2638.4,2638.2,0.75796]
[1739475294553,3.21348473,2638.4,2638.1,3.95494848]
[1739475294758,0.75798,2638.2,2638.1,3.95494848]
[1739475294951,3.21348473,2638.4,2637.9,0.00568473]
[1739475295155,0.75803,2638.0,2637.9,0.00568473]
[1739475295957,3.2078,2638.1,2637.9,0.00568473]
[1739475296162,3.2078,2638.1,2637.9,0.76373473]
[1739475296163,0.75803,2638.0,2637.9,0.76373473]
[1739475296360,0.75803,2638.0,2637.9,0.00568473]
[1739475296554,3.2078,2638.1,2637.9,0.00568473]
[1739475296761,0.00568473,2638.4,2637.9,3.21348473]
[1739475296960,0.76361473,2638.4,2638.1,0.75798]
[1739475297166,0.75795,2638.3,2638.1,0.75798]
[1739475297462,0.75801,2638.1,2637.9,4.56103473]
[1739475297755,3.96557,2639.0,2638.6,0.75784]
[1739475297959,3.2078,2639.4,2638.7,4.54154848]
[1739475298260,3.7611,2639.7,2638.8,0.5895]
[1739475298450,0.75773,2639.1,2638.8,0.5895]
[1739475298656,0.75776,2639.0,2638.8,0.5895]
[1739475298861,0.75774,2639.1,2638.9,40.8]
[1739475299863,0.75771,2639.2,2638.9,41.55776]
[1739475300363,3.2078,2639.3,2638.9,40.8]
[1739475300562,0.75775,2639.0,2638.9,40.8]
[1739475300958,3.2078,2639.6,2638.9,44.0078]
[1739475301261,0.5776,2639.9,2639.7,0.75752]
[1739475301461,3.2078,2640.2,2639.8,0.75752]
[1739475301655,3.2078,2640.2,2639.8,0.75749]
[1739475301856,3.2078,2640.2,2639.5,8.97643321]
[1739475302056,0.75744,2640.1,2639.5,8.97643321]
[1739475302256,3.2078,2640.2,2639.5,8.97643321]
[1739475302456,0.75756,2639.7,2639.5,7.16843321]
[1739475302759,0.75757,2639.6,2639.5,0.00568473]
[1739475302966,1.32343,2639.8,2639.5,0.00568473]
[1739475303157,5.0168,2640.2,2639.6,0.75755]
[1739475303464,3.2078,2640.2,2639.5,3.96063321]
[1739475303663,3.96521,2640.2,2639.9,0.75747]
[1739475303859,3.2078,2640.2,2640.0,0.75745]
[1739475304063,3.2078,2640.2,2640.0,0.75743]
[1739475304266,3.2078,2640.2,2639.8,3.95494848]
[1739475304657,3.2078,2640.2,2640.0,0.75744]
[1739475304866,3.2078,2640.2,2640.1,0.75743]
[1739475305358,3.2078,2640.2,2639.8,5.77194848]
[1739475305559,3.2078,2640.2,2640.0,0.75744]
[1739475305761,3.2078,2640.2,2639.8,5.77194848]
[1739475305959,3.2078,2640.2,2640.0,0.75744]
[1739475306268,3.96521,2640.2,2639.8,6.52945848]
[1739475306667,3.2078,2640.2,2639.8,5.77194848]
[1739475307268,3.2078,2640.2,2639.9,0.75747]
[1739475307563,3.2078,2640.2,2639.8,5.77194848]
[1739475308056,3.2078,2640.2,2639.8,6.52944848]
[1739475308258,3.96522,2640.2,2639.9,0.75749]
[1739475308458,3.2078,2640.2,2639.8,5.77194848]
[1739475308660,3.2078,2640.2,2640.0,0.75743]
[1739475308856,0.5659,2640.3,2639.8,5.77194848]
[1739475309057,3.8045,2640.5,2640.2,0.75739]
[1739475309267,3.8045,2640.5,2640.2,0.75738]
[1739475309469,0.7573,2640.6,2640.1,3.95494848]
[1739475309662,0.75728,2640.7,2640.3,0.75736]
[1739475309861,0.75727,2640.7,2640.1,3.95494848]
[1739475310369,3.96505,2640.8,2640.5,0.75731]
[1739475310563,3.2078,2640.8,2640.3,0.75735]
[1739475310768,3.2078,2640.8,2640.3,2.56535]
[1739475311067,3.2078,2640.8,2640.4,0.75734]
[1739475311068,0.75729,2640.6,2640.4,0.75734]
[1739475311267,3.2078,2640.8,2640.3,1.808]
[1739475311468,0.75734,2640.4,2640.3,1.808]
[1739475312363,3.2078,2640.5,2639.8,3.95494848]
[1739475312567,0.75749,2640.0,2639.8,0.75752]
[1739475312971,3.2078,2640.1,2640.0,0.75746]
[1739475313269,0.5786,2640.3,2639.9,0.75747]
[1739475313672,0.75745,2640.1,2639.9,0.75747]
[1739475313971,0.5786,2640.3,2639.8,3.95494848]
[1739475314166,3.2078,2640.4,2639.9,1.89373]
[1739475314372,3.2078,2640.4,2640.1,0.75741]
[1739475314571,0.75738,2640.3,2640.1,0.75741]
[1739475315577,0.75738,2640.3,2639.8,5.84872848]
[1739475315871,3.2078,2640.4,2639.8,5.84872848]
[1739475315872,3.2078,2640.4,2640.3,0.75737]
[1739475316068,0.5851,2640.7,2640.1,7.65050848]
[1739475316267,3.2078,2640.8,2640.7,0.75726]
[1739475316870,3.7608,2641.1,2640.5,3.8096]
[1739475317073,5.95011466,2641.1,2640.5,0.6018]
[1739475317373,4.05722466,2641.1,2640.5,0.6018]
[1739475317567,3.2078,2641.1,2640.8,3.38390432]
[1739475317775,3.2078,2641.1,2641.0,0.75717]
[1739475317974,0.75718,2641.0,2640.8,3.38390432]
[1739475318274,0.75718,2641.0,2640.8,4.14112432]
[1739475318466,0.75717,2641.1,2640.9,0.75719]
[1739475318668,0.5851,2641.2,2640.8,3.38390432]